bitfinex-derivatives/quotes_SOLF0:USTF0_20250905
["timestamp","ask_amount","ask_price","bid_price","bid_amount"]
[1757095906929,75.21964651,202.35,202.33,7.99]
[1757095907832,7.69,202.37,202.33,7.99]
[1757095908024,2.18983776,202.38,202.32,2.18983776]
[1757095908228,7.62,202.35,202.3,2.18983776]
[1757095908432,7.62,202.35,202.29,7.99]
[1757095908738,9.80983776,202.38,202.31,8.07]
[1757095909035,7.62,202.38,202.32,2.18983776]
[1757095910835,2.18983776,202.37,202.3,2.18983776]
[1757095911031,7.62,202.36,202.3,2.18983776]
[1757095913439,7.62,202.36,202.29,8.07]
[1757095914040,130.22,202.39,202.29,8.07]
[1757095914435,130.22,202.39,202.3,4.4484]
[1757095914641,130.22,202.39,202.31,8.07]
[1757095916335,7.62,202.39,202.31,8.07]
[1757095916540,7.62,202.45,202.32,8.07]
[1757095916732,4.935,202.42,202.32,8.07]
[1757095917134,7.62,202.43,202.32,8.07]
[1757095917335,7.62,202.43,202.34,3.42157217]
[1757095917535,7.62,202.43,202.35,8.07]
[1757095919340,11.04157217,202.43,202.35,8.07]
[1757095920936,133.60157217,202.43,202.35,8.07]
[1757095921343,4.935,202.42,202.35,8.07]
[1757095922139,7.62,202.41,202.3,8.07]
[1757095922641,3.42157217,202.4,202.3,8.07]
[1757095922829,7.62,202.39,202.3,8.07]
[1757095923935,7.62,202.39,202.31,8.07]
[1757095924740,7.62,202.39,202.32,8.07]
[1757095924934,3.42157217,202.4,202.21,8.07]
[1757095925140,3.42157217,202.37,202.24,3.42157217]
[1757095925443,7.62,202.36,202.27,3.42157217]
[1757095925638,7.62,202.36,202.28,8.07]
[1757095927847,7.62,202.36,202.28,12.5188]
[1757095929449,7.62,202.36,202.28,8.07]
[1757095931651,7.62,202.36,202.3,12.5184]
[1757095933153,7.62,202.36,202.3,8.07]
[1757095933746,7.62,202.36,202.27,8.07]
[1757095934747,7.62,202.43,202.29,8.07]
[1757095935052,11.04157217,202.43,202.32,8.07]
[1757095935252,11.04157217,202.43,202.28,69.2066]
[1757095935253,7.62,202.43,202.35,8.07]
[1757095935646,74.94971824,202.45,202.35,8.07]
[1757095936252,74.94971824,202.45,202.35,12.5174]
[1757095936642,74.94971824,202.45,202.35,8.07]
[1757095936848,7.62,202.39,202.3,8.07]
[1757095937045,3.42157217,202.34,202.21,8.07]
[1757095937250,3.42157217,202.34,202.2,3.42157217]
[1757095937453,7.62,202.33,202.21,8.07]
[1757095938250,7.6,202.33,202.21,12.5205]
[1757095938448,7.6,202.33,202.21,4.4505]
[1757095938650,7.6,202.33,202.22,7.9]
[1757095940152,3.42157217,202.31,202.22,7.9]
[1757095940361,7.6,202.33,202.23,7.9]
[1757095940552,11.02157217,202.33,202.23,7.9]
[1757095941856,11.02157217,202.33,202.24,4.4498]
[1757095942058,11.02157217,202.33,202.25,7.9]
[1757095944058,3.42157217,202.36,202.27,7.9]
[1757095944454,3.42157217,202.36,202.28,4.4488]
[1757095944656,7.6,202.37,202.27,7.9]
[1757095945361,7.6,202.37,202.3,12.3485]
[1757095946766,3.42157217,202.39,202.31,12.3481]
[1757095947054,7.6,202.41,202.31,12.3481]
[1757095947253,7.6,202.41,202.32,4.4479]
[1757095947450,7.6,202.41,202.33,7.9]
[1757095951457,7.6,202.41,202.33,12.3477]
[1757095952360,7.6,202.33,202.25,7.9]
[1757095956565,11.02157217,202.36,202.25,7.9]
[1757095957663,11.02157217,202.36,202.21,69.229]
[1757095957664,7.6,202.36,202.27,7.87077217]
[1757095957869,7.6,202.36,202.28,7.9]
[1757095958065,7.6,202.34,202.23,3.42157217]
[1757095958269,7.6,202.3,202.23,7.9]
[1757095962167,11.02157217,202.3,202.19,7.9]
[1757095963377,7.6,202.3,202.21,3.42157217]
[1757095963561,7.6,202.3,202.22,7.9]
[1757095964173,11.02157217,202.3,202.22,7.9]
[1757095966571,19.18,202.34,202.18,7.9]
[1757095966572,7.6,202.26,202.18,7.9]
[1757095966768,19.18,202.34,202.14,1.86914562]
[1757095966769,3.42157217,202.2,202.14,1.86914562]
[1757095966974,3.42157217,202.21,202.11,7.9]
[1757095967477,7.6,202.2,202.11,7.9]
[1757095967679,3.42157217,202.18,202.11,7.9]
[1757095967976,7.6,202.17,202.11,7.9]
[1757095968175,7.63175302,202.17,202.11,7.9]
[1757095971173,0.03175302,202.17,202.11,7.9]
[1757095973578,2.22591011,202.17,202.11,7.9]
[1757095974475,0.03175302,202.17,202.11,7.9]
[1757095975477,0.03175302,202.17,202.11,10.09415709]
[1757095976276,7.43,202.15,202.08,2.19415709]
[1757095976778,7.43,202.15,202.1,2.19415709]
[1757095976981,0.03452061,202.14,202.11,8.18]
[1757095977282,0.03452061,202.14,202.1,2.19415709]
[1757095977474,0.03452061,202.14,202.11,8.18]
[1757095978375,0.03452061,202.14,202.1,2.19415709]
[1757095978782,0.03452061,202.14,202.11,8.18]
[1757095979582,0.03452061,202.14,202.1,2.19415709]
[1757095979773,0.03452061,202.14,202.11,8.18]
[1757095979979,0.03452061,202.14,202.1,2.19415709]
[1757095980279,0.03452061,202.14,202.11,8.18]
[1757095980882,0.03452061,202.14,202.1,2.19415709]
[1757095981680,0.03452061,202.14,202.11,8.18]
[1757095982276,0.03452061,202.14,202.1,2.19415709]
[1757095982780,0.03452061,202.14,202.13,8.18]
[1757095982988,0.03452061,202.14,202.13,10.37415709]
[1757095983382,0.03452061,202.14,202.13,8.18]
[1757095983890,0.03452061,202.14,202.1,10.37415709]
[1757095984386,0.03452061,202.14,202.11,8.18]
[1757095985685,0.03452061,202.14,202.1,2.19415709]
[1757095985883,0.03452061,202.14,202.11,8.18]
[1757095986187,0.03452061,202.14,202.13,8.18]
[1757095989189,124.0,202.34,202.13,8.18]
[1757095989190,2.19415709,202.23,202.13,8.68]
[1757095989386,7.43,202.26,202.1,69.2673]
[1757095989387,2.19415709,202.25,202.19,10.37415709]
[1757095991089,2.19415709,202.27,202.21,10.37415709]
[1757095992696,2.19415709,202.27,202.21,2.19415709]
[1757095992903,7.43,202.28,202.21,2.19415709]
[1757095993203,7.43,202.25,202.21,2.19415709]
[1757095993504,9.62415709,202.26,202.19,10.37415709]
[1757095996803,18.30089602,202.3,202.15,8.18]
[1757095996804,2.19415709,202.2,202.15,8.18]
[1757095997104,7.43,202.19,202.15,8.18]
[1757095997703,2.19415709,202.22,202.16,8.18]
[1757095999408,2.19415709,202.22,202.18,7.52]
[1757095999601,9.86415709,202.22,202.18,7.52]
[1757096001908,7.7,202.21,202.15,7.52]
[1757096002208,7.7,202.21,202.15,9.71415709]
[1757096003609,2.19415709,202.2,202.15,2.19415709]
[1757096003912,2.19415709,202.22,202.16,7.52]
[1757096004913,2.19415709,202.2,202.14,2.19415709]
[1757096006910,2.19415709,202.18,202.13,7.52]
[1757096007111,2.19415709,202.16,202.09,7.52]
[1757096007414,9.87415709,202.16,202.13,0.03294706]
[1757096007609,7.68,202.16,202.13,0.03294706]
[1757096007912,7.68,202.16,202.13,7.55294706]
[1757096008111,2.22725468,202.18,202.13,7.55294706]
[1757096008317,7.68,202.17,202.13,7.55294706]
[1757096008813,7.68,202.17,202.13,0.03294706]
[1757096009812,0.03309759,202.18,202.13,0.03294706]
[1757096010105,9.87415709,202.15,202.13,0.03294706]
[1757096010507,7.68,202.17,202.13,7.55294706]
[1757096011211,2.22725468,202.18,202.13,7.55294706]
[1757096011212,0.03309759,202.18,202.14,2.19415709]
[1757096011413,0.03309759,202.18,202.15,7.52]
[1757096011807,0.03309759,202.18,202.17,7.52]
[1757096013408,0.03309759,202.18,202.15,2.19415709]
[1757096013409,0.03309759,202.18,202.15,9.71415709]
[1757096013708,0.03309759,202.18,202.16,7.52]
[1757096014408,0.03309759,202.18,202.15,7.52]
[1757096014614,0.03309759,202.18,202.14,2.19415709]
[1757096014814,0.03309759,202.18,202.16,7.52]
[1757096016416,0.03309759,202.18,202.17,7.52]
[1757096025014,7.68,202.25,202.17,7.52]
[1757096025015,9.90415709,202.29,202.17,2.36791461]
[1757096025215,9.90415709,202.29,202.22,9.71415709]
[1757096026221,9.90415709,202.29,202.23,0.03756932]
[1757096027423,7.71,202.29,202.23,0.03756932]
[1757096027723,9.90415709,202.29,202.23,0.03756932]
[1757096028022,2.19415709,202.29,202.24,7.52]
[1757096028222,2.19415709,202.31,202.24,9.76415709]
[1757096028625,9.91415709,202.31,202.24,9.76415709]
[1757096029523,7.72,202.31,202.25,2.19415709]
[1757096030424,7.72,202.31,202.24,9.76415709]
[1757096031826,7.72,202.31,202.24,2.19415709]
[1757096032027,7.72,202.31,202.26,2.19415709]
[1757096032329,7.72,202.31,202.27,7.57]
[1757096033331,2.19415709,202.32,202.27,7.57]
[1757096033633,7.72,202.31,202.27,7.57]
[1757096033927,7.72,202.29,202.27,0.03638924]
[1757096034123,9.91415709,202.28,202.27,0.03638924]
[1757096035523,7.72,202.28,202.27,0.03638924]
[1757096037333,7.72,202.33,202.27,7.60638924]
[1757096037535,11.1445116,202.33,202.27,7.60638924]
[1757096038535,7.72,202.33,202.27,7.60638924]
[1757096040432,0.86064053,202.36,202.27,7.60638924]
[1757096040736,7.72,202.37,202.27,7.60638924]
[1757096041136,3.4245116,202.35,202.27,7.60638924]
[1757096041331,7.72,202.34,202.27,0.03638924]
[1757096041532,3.4245116,202.32,202.27,0.03638924]
[1757096041833,7.72,202.37,202.27,0.03638924]
[1757096042036,3.4245116,202.32,202.27,0.03638924]
[1757096042335,7.72,202.31,202.27,7.60638924]
[1757096042929,7.72,202.31,202.28,7.57]
[1757096043137,7.72,202.31,202.27,0.03638924]
[1757096044033,3.4245116,202.32,202.27,0.03638924]
[1757096044235,7.72,202.31,202.27,0.03638924]
[1757096044436,3.4245116,202.38,202.27,0.03638924]
[1757096044437,7.72,202.28,202.27,0.03638924]
[1757096047035,3.4245116,202.29,202.27,0.03638924]
[1757096047237,11.1445116,202.29,202.27,0.03638924]
[1757096047433,7.72,202.28,202.27,0.03638924]
[1757096051142,23.75881889,202.38,202.27,0.03638924]
[1757096051143,3.4245116,202.32,202.27,0.03638924]
[1757096051940,7.72,202.31,202.27,0.03638924]
[1757096052333,3.4245116,202.32,202.27,0.03638924]
[1757096052534,7.72,202.31,202.27,0.03638924]
[1757096053238,3.4245116,202.32,202.27,0.03638924]
[1757096053441,3.4245116,202.29,202.27,0.03638924]
[1757096053646,7.72,202.28,202.27,0.03638924]
[1757096054542,7.72,202.28,202.16,7.57]
[1757096054742,7.68,202.21,202.13,7.57]
[1757096056738,11.1045116,202.21,202.13,7.57]
[1757096062355,7.68,202.21,202.13,7.57]
[1757096062657,12.48,202.28,202.13,7.57]
[1757096062855,3.4245116,202.25,202.13,7.57]
[1757096063054,3.4245116,202.25,202.15,3.4245116]
[1757096063254,7.67,202.24,202.16,7.97]
[1757096064354,3.4245116,202.26,202.16,7.97]
[1757096064561,3.4245116,202.27,202.16,7.97]
[1757096064757,7.67,202.29,202.16,7.97]
[1757096064961,3.4245116,202.28,202.16,7.97]
[1757096065261,7.67,202.27,202.16,7.97]
[1757096069563,7.67,202.27,202.18,3.4245116]
[1757096071565,7.67,202.27,202.18,11.3945116]
[1757096073366,7.67,202.27,202.18,7.97]
[1757096074457,7.69,202.33,202.22,3.4245116]
[1757096074662,7.69,202.33,202.25,11.3945116]
[1757096074866,7.69,202.33,202.25,7.97]
[1757096075168,7.69,202.33,202.26,3.4245116]
[1757096075569,7.69,202.33,202.27,7.97]
[1757096080172,7.69,202.33,202.22,3.4245116]
[1757096080465,7.69,202.33,202.23,7.97]
[1757096090980,7.67,202.31,202.23,7.97]
[1757096091280,3.4245116,202.29,202.23,7.97]
[1757096091478,3.4245116,202.29,202.12,7.73]
[1757096091678,7.67,202.28,202.17,7.73]
[1757096092680,3.4245116,202.26,202.17,7.73]
[1757096093883,11.0945116,202.26,202.17,7.73]
[1757096095172,7.67,202.26,202.17,7.73]
[1757096095585,2.19218174,202.25,202.19,9.92218174]
[1757096097181,7.67,202.26,202.19,9.92218174]
[1757096097384,2.19218174,202.25,202.19,9.92218174]
[1757096098384,2.19218174,202.25,202.19,2.19218174]
[1757096099782,7.67,202.26,202.2,7.73]
[1757096099984,2.19218174,202.25,202.19,2.19218174]
[1757096100188,2.19218174,202.25,202.2,7.73]
[1757096100484,2.19218174,202.25,202.19,2.19218174]
[1757096100683,2.19218174,202.25,202.2,7.73]
[1757096101183,7.67,202.35,202.22,7.73]
[1757096101484,2.19218174,202.31,202.26,7.73]
[1757096101680,2.19218174,202.31,202.25,2.19218174]
[1757096101886,2.19218174,202.31,202.26,7.73]
[1757096102183,2.19218174,202.31,202.25,2.19218174]
[1757096102374,7.67,202.38,202.27,2.19218174]
[1757096102580,2.19218174,202.34,202.28,7.73]
[1757096103477,7.67,202.35,202.28,7.73]
[1757096103678,7.67,202.38,202.33,2.19218174]
[1757096103882,7.67,202.38,202.34,7.73]
[1757096104190,2.19218174,202.39,202.33,9.92218174]
[1757096104384,2.19218174,202.37,202.3,2.19218174]
[1757096104579,0.86034265,202.43,202.29,7.73]
[1757096104580,2.19218174,202.33,202.29,7.73]
[1757096104886,9.86218174,202.33,202.29,7.73]
[1757096105086,2.19218174,202.31,202.21,18.78]
[1757096105278,2.19218174,202.31,202.25,7.73]
[1757096107089,2.19218174,202.31,202.25,9.92218174]
[1757096108878,2.19218174,202.33,202.26,7.73]
[1757096109390,2.19218174,202.35,202.27,2.19218174]
[1757096109580,2.19218174,202.35,202.29,2.19218174]
[1757096110087,2.19218174,202.35,202.3,7.73]
[1757096110384,2.19218174,202.35,202.29,2.19218174]
[1757096110787,7.67,202.36,202.29,2.19218174]
[1757096111087,2.19218174,202.35,202.28,9.92218174]
[1757096111680,2.19218174,202.37,202.31,7.73]
[1757096111883,2.19218174,202.39,202.33,7.73]
[1757096112485,9.86218174,202.35,202.3,9.92218174]
[1757096112690,7.67,202.35,202.3,2.19218174]
[1757096112991,7.67,202.35,202.31,7.73]
[1757096113186,2.19218174,202.37,202.31,7.73]
[1757096113693,9.86218174,202.37,202.33,7.73]
[1757096114192,2.19218174,202.39,202.33,7.73]
[1757096115288,9.86218174,202.37,202.33,7.73]
[1757096115485,2.19218174,202.37,202.31,7.73]
[1757096115687,7.67,202.4,202.33,7.73]
[1757096115886,2.19218174,202.39,202.33,7.73]
[1757096116887,7.67,202.4,202.33,7.73]
[1757096117096,2.19218174,202.38,202.33,7.73]
[1757096117289,2.19218174,202.41,202.35,7.73]
[1757096118193,9.86218174,202.39,202.35,7.73]
[1757096118392,9.86218174,202.39,202.35,7.47]
[1757096118888,2.19218174,202.39,202.34,2.19218174]
[1757096119288,7.48,202.42,202.34,2.19218174]
[1757096119492,4.947,202.41,202.36,2.19218174]
[1757096119685,4.947,202.41,202.37,7.47]
[1757096120090,4.947,202.41,202.36,2.19218174]
[1757096120288,2.19218174,202.45,202.39,7.47]
[1757096123198,2.19218174,202.43,202.39,7.47]
[1757096123398,2.19218174,202.43,202.36,2.19218174]
[1757096123399,7.48,202.42,202.36,9.66218174]
[1757096123592,9.67218174,202.42,202.36,9.66218174]
[1757096123795,9.67218174,202.42,202.37,7.47]
[1757096123796,2.19218174,202.42,202.37,7.47]
[1757096123997,2.19218174,202.45,202.39,7.47]
[1757096124193,7.48,202.46,202.39,7.47]
[1757096124390,2.19218174,202.45,202.39,7.47]
[1757096124592,9.67218174,202.46,202.4,2.19218174]
[1757096125097,7.48,202.46,202.4,2.19218174]
[1757096125495,9.67218174,202.46,202.4,2.19218174]
[1757096126394,7.48,202.46,202.41,7.47]
[1757096126699,7.48,202.46,202.42,9.66218174]
[1757096126895,2.19218174,202.48,202.42,9.66218174]
[1757096127205,7.48,202.47,202.42,9.66218174]
[1757096127394,7.48,202.45,202.42,7.47]
[1757096127595,7.48,202.45,202.4,2.19218174]
[1757096127896,2.19218174,202.46,202.41,7.47]
[1757096128097,7.48,202.45,202.41,7.47]
[1757096128694,2.19218174,202.46,202.41,7.47]
[1757096129601,7.48,202.45,202.41,7.47]
[1757096129803,2.19218174,202.46,202.41,7.47]
[1757096130504,2.19218174,202.42,202.36,7.47]
[1757096132006,2.19218174,202.38,202.26,7.47]
[1757096132204,2.19218174,202.38,202.33,7.47]
[1757096132396,2.19218174,202.38,202.32,2.19218174]
[1757096132804,2.19218174,202.38,202.33,7.47]
[1757096133102,7.13918174,202.4,202.34,2.19218174]
[1757096133407,7.13918174,202.4,202.35,7.47]
[1757096133604,7.13918174,202.4,202.34,2.19218174]
[1757096134000,7.13918174,202.4,202.35,7.47]
[1757096134199,7.13918174,202.4,202.34,2.19218174]
[1757096134699,7.13918174,202.4,202.35,7.47]
[1757096134895,2.19218174,202.43,202.37,9.66218174]
[1757096135105,2.19218174,202.43,202.28,40.02]
[1757096135106,4.947,202.42,202.36,2.19218174]
[1757096135306,2.19218174,202.43,202.37,7.47]
[1757096135907,4.947,202.42,202.36,2.19218174]
[1757096137302,4.947,202.42,202.37,7.47]
[1757096137497,4.947,202.42,202.36,9.66218174]
[1757096137800,2.19218174,202.43,202.36,9.66218174]
[1757096138000,2.19218174,202.43,202.36,2.19218174]
[1757096138207,2.19218174,202.43,202.39,7.47]
[1757096138401,2.19218174,202.43,202.38,2.19218174]
[1757096138605,9.67218174,202.43,202.39,7.47]
[1757096138805,7.48,202.43,202.39,7.47]
[1757096139000,7.13918174,202.45,202.39,7.47]
[1757096140500,2.19218174,202.43,202.28,7.47]
[1757096140700,2.19218174,202.41,202.35,9.66218174]
[1757096141711,2.19218174,202.41,202.36,7.47]
[1757096142204,2.19218174,202.41,202.35,2.19218174]
[1757096142410,2.19218174,202.43,202.37,2.19218174]
[1757096143808,14.61918174,202.45,202.39,2.19218174]
[1757096144806,4.947,202.46,202.41,2.19218174]
[1757096145307,7.48,202.48,202.43,2.19218174]
[1757096145512,7.48,202.48,202.44,7.47]
[1757096146010,2.19218174,202.48,202.44,7.47]
[1757096146213,7.48,202.47,202.44,7.47]
[1757096146413,7.48,202.47,202.41,9.66218174]
[1757096146910,9.67218174,202.46,202.42,7.47]
[1757096147311,9.67218174,202.46,202.41,2.19218174]
[1757096147513,9.67218174,202.46,202.42,7.47]
[1757096148512,7.68,202.45,202.4,2.19218174]
[1757096148808,7.68,202.51,202.44,2.19218174]
[1757096149013,9.87218174,202.51,202.44,2.19218174]
[1757096149411,2.19218174,202.49,202.43,7.95]
[1757096149606,9.87218174,202.49,202.43,7.95]
[1757096151114,2.19218174,202.47,202.43,7.95]
[1757096151312,9.87218174,202.47,202.43,7.95]
[1757096151511,7.68,202.46,202.43,7.95]
[1757096153312,2.19218174,202.47,202.41,7.95]
[1757096155620,7.68,202.49,202.41,7.95]
[1757096155821,7.68,202.49,202.41,11.36798085]
[1757096156119,7.68,202.49,202.42,7.95]
[1757096159722,16.04498085,202.47,202.38,7.95]
[1757096161525,7.68,202.47,202.39,7.95]
[1757096162929,11.09798085,202.5,202.4,7.95]
[1757096165926,7.68,202.48,202.4,7.95]
[1757096168929,7.68,202.51,202.42,7.95]
[1757096179327,0.85998122,202.52,202.42,7.95]
[1757096181035,7.67,202.51,202.42,7.95]
[1757096196539,7.67,202.51,202.4,7.86418085]
[1757096196540,7.67,202.51,202.44,7.55]
[1757096198844,7.68,202.54,202.46,7.55]
[1757096203352,7.68,202.54,202.48,3.41798085]
[1757096204049,7.68,202.54,202.49,7.55]
[1757096205253,7.68,202.54,202.48,3.41798085]
[1757096205652,7.68,202.54,202.49,7.55]
[1757096205953,4.2777496,202.58,202.48,3.41798085]
[1757096206255,7.68,202.57,202.49,7.55]
[1757096213352,7.68,202.57,202.51,3.41798085]
[1757096213553,7.68,202.57,202.52,7.49]
[1757096213956,7.68,202.57,202.51,3.41798085]
[1757096214358,7.68,202.57,202.52,7.49]
[1757096214655,0.85958824,202.61,202.43,94.8144]
[1757096214855,7.66,202.6,202.51,10.90798085]
[1757096215251,0.85958824,202.61,202.51,10.90798085]
[1757096215959,7.66,202.6,202.51,10.90798085]
[1757096216557,7.66,202.6,202.51,7.49]
[1757096216751,11.07798085,202.6,202.48,3.41798085]
[1757096216954,11.07798085,202.6,202.49,7.49]
[1757096217555,2.18545922,202.57,202.5,2.18545922]
[1757096217751,2.18545922,202.55,202.49,7.49]
[1757096218260,7.66,202.54,202.49,7.49]
[1757096218561,7.66,202.54,202.48,9.67545922]
[1757096221362,7.66,202.54,202.48,2.18545922]
[1757096221558,7.66,202.54,202.51,7.49]
[1757096222260,2.18545922,202.57,202.51,7.49]
[1757096222455,0.85958824,202.61,202.55,7.49]
[1757096222658,3.04504746,202.61,202.55,7.49]
[1757096222859,7.66,202.6,202.55,7.49]
[1757096223054,7.66,202.6,202.56,2.18545922]
[1757096223257,7.66,202.6,202.56,9.67545922]
[1757096223456,7.66,202.6,202.56,2.18545922]
[1757096223663,2.18545922,202.61,202.56,2.18545922]
[1757096224362,7.66,202.6,202.56,2.18545922]
[1757096224853,2.18545922,202.61,202.56,2.18545922]
[1757096225057,7.66,202.6,202.56,2.18545922]
[1757096225254,2.18545922,202.61,202.56,2.18545922]
[1757096225463,7.66,202.6,202.56,2.18545922]
[1757096225862,2.18545922,202.61,202.54,2.18545922]
[1757096226164,7.66,202.6,202.54,2.18545922]
[1757096227663,318.24,202.63,202.55,2.18545922]
[1757096227863,7.66,202.6,202.54,7.49]
[1757096228064,2.18545922,202.61,202.55,2.18545922]
[1757096228260,7.66,202.6,202.52,7.49]
[1757096228463,2.18545922,202.61,202.51,4.4438]
[1757096228464,9.84545922,202.61,202.55,2.18545922]
[1757096230663,2.18545922,202.59,202.54,7.49]
[1757096231167,7.66,202.58,202.54,7.49]
[1757096231374,7.66,202.58,202.52,2.18545922]
[1757096231568,7.66,202.58,202.53,7.49]
[1757096232168,7.66,202.58,202.52,2.18545922]
[1757096232871,7.66,202.58,202.53,7.49]
[1757096234065,9.84545922,202.59,202.53,7.49]
[1757096234769,7.66,202.59,202.53,7.49]
[1757096234964,2.18545922,202.58,202.52,2.18545922]
[1757096235170,2.18545922,202.58,202.53,7.49]
[1757096235470,2.18545922,202.58,202.52,2.18545922]
[1757096236073,2.18545922,202.58,202.53,7.49]
[1757096236574,9.84545922,202.58,202.52,7.49]
[1757096236772,2.18545922,202.56,202.52,7.49]
[1757096236967,2.18545922,202.56,202.47,4.4447]
[1757096236968,2.18545922,202.54,202.47,4.4447]
[1757096237168,9.84545922,202.54,202.48,9.67545922]
[1757096238272,2.18545922,202.5,202.44,2.18545922]
[1757096238474,9.66545922,202.5,202.46,7.49]
[1757096238672,9.66545922,202.5,202.44,2.18545922]
[1757096238869,7.48,202.5,202.45,7.49]
[1757096239074,2.18545922,202.51,202.45,7.49]
[1757096240279,7.13245922,202.51,202.45,7.49]
[1757096240979,7.48,202.48,202.45,7.49]
[1757096242975,2.18545922,202.49,202.43,7.49]
[1757096243175,2.18545922,202.49,202.44,2.18545922]
[1757096243577,12.427,202.51,202.44,9.67545922]
[1757096243778,7.48,202.48,202.44,7.49]
[1757096243976,7.48,202.48,202.42,2.18545922]
[1757096244780,7.48,202.48,202.43,7.49]
[1757096244982,7.48,202.48,202.42,2.18545922]
[1757096245579,7.48,202.48,202.43,7.49]
[1757096245772,7.48,202.48,202.42,2.18545922]
[1757096246677,7.48,202.48,202.43,7.49]
[1757096247077,7.48,202.48,202.42,2.18545922]
[1757096247478,7.48,202.48,202.43,7.49]
[1757096247682,7.48,202.48,202.42,2.18545922]
[1757096248082,9.66545922,202.49,202.43,7.49]
[1757096248973,7.48,202.46,202.38,7.49]
[1757096249283,7.48,202.46,202.4,9.67545922]
[1757096250384,7.48,202.46,202.4,7.49]
[1757096250587,7.48,202.46,202.4,9.67545922]
[1757096256886,2.18545922,202.49,202.44,2.18545922]
[1757096257088,4.947,202.52,202.45,7.49]
[1757096257089,2.18545922,202.51,202.45,7.49]
[1757096257394,7.13245922,202.51,202.45,7.49]
[1757096257591,7.13245922,202.51,202.46,2.18545922]
[1757096257889,7.48,202.5,202.46,2.18545922]
[1757096258195,7.48,202.5,202.47,7.49]
[1757096258992,7.48,202.5,202.47,9.67545922]
[1757096259994,12.424,202.52,202.48,7.49]
[1757096260191,4.944,202.52,202.48,7.49]
[1757096260398,12.424,202.52,202.47,2.18545922]
[1757096260890,4.944,202.52,202.48,7.49]
[1757096261096,2.18545922,202.53,202.47,2.18545922]
[1757096261290,7.48,202.52,202.47,2.18545922]
[1757096261690,7.12945922,202.53,202.47,2.18545922]
[1757096262091,7.48,202.52,202.47,2.18545922]
[1757096262287,7.48,202.51,202.47,9.67545922]
[1757096263394,7.48,202.51,202.48,7.49]
[1757096263891,12.424,202.54,202.5,7.49]
[1757096264395,7.48,202.53,202.5,7.49]
[1757096264792,4.944,202.54,202.49,2.18545922]
[1757096264988,9.66545922,202.56,202.5,7.49]
[1757096268593,4.944,202.61,202.51,2.18545922]
[1757096268799,2.18545922,202.56,202.51,9.80545922]
[1757096269000,7.66,202.55,202.51,9.80545922]
[1757096270000,7.66,202.55,202.51,2.18545922]
[1757096270200,2.18545922,202.56,202.52,7.62]
[1757096270396,2.18545922,202.56,202.51,2.18545922]
[1757096270695,2.18545922,202.56,201.98,13.68405953]
[1757096270696,7.66,202.55,202.44,7.62]
[1757096270998,7.66,202.51,202.45,2.18545922]
[1757096271292,7.66,202.51,202.46,7.62]
[1757096271496,4.944,202.51,202.46,7.62]
[1757096272194,7.66,202.5,202.46,7.62]
[1757096272396,4.944,202.51,202.46,7.62]
[1757096272594,7.66,202.49,202.45,7.62]
[1757096273094,7.66,202.49,202.43,2.18545922]
[1757096273294,7.66,202.48,202.45,7.62]
[1757096273496,9.84545922,202.48,202.42,2.18545922]
[1757096275491,9.84545922,202.48,202.43,7.62]
[1757096275898,7.66,202.47,202.44,7.62]
[1757096280500,7.66,202.5,202.41,7.62]
[1757096280901,7.66,202.54,202.44,7.62]